bitfinex/quotes_BTCUSD_20220306
["timestamp","ask_amount","ask_price","bid_price","bid_amount"]
[1646583167457,0.19394248,39225.0,39223.0,0.367045]
[1646583167655,0.18394248,39225.0,39223.0,0.367045]
[1646583167854,0.44394248,39225.0,39223.0,0.367045]
[1646583168263,0.01514938,39228.0,39224.0,1.8289869]
[1646583168457,0.01514938,39228.0,39227.0,0.31930979]
[1646583168655,0.01514938,39228.0,39227.0,0.68630979]
[1646583168858,1.1,39227.0,39224.0,0.00902074]
[1646583169066,0.01514938,39228.0,39222.0,0.13151667]
[1646583169067,0.17628416,39228.0,39222.0,0.004]
[1646583169264,0.01514938,39228.0,39227.0,0.01930979]
[1646583169860,0.01514938,39228.0,39227.0,0.02355775]
[1646583170109,0.01514938,39228.0,39227.0,0.01430979]
[1646583170301,0.01514938,39228.0,39227.0,0.03124157]
[1646583170605,0.0021,39240.0,39229.0,1.1]
[1646583170802,0.0021,39240.0,39236.0,0.00930979]
[1646583171400,0.96596923,39239.0,39237.0,1.09069021]
[1646583171605,0.96596923,39239.0,39238.0,0.00865848]
[1646583171806,0.96596923,39239.0,39238.0,0.30865848]
[1646583172002,0.68952923,39239.0,39238.0,0.30865848]
[1646583172207,0.01594002,39256.0,39244.0,0.25]
[1646583172417,0.0013102,39265.0,39255.0,1.11462699]
[1646583172418,2e-07,39265.0,39255.0,1.11462699]
[1646583172607,1.0,39269.0,39255.0,1.11462699]
[1646583172608,0.00782775,39269.0,39265.0,0.6]
[1646583172813,0.00782775,39269.0,39255.0,0.06370827]
[1646583172814,0.18970071,39268.0,39261.0,0.063694]
[1646583173005,0.00782775,39269.0,39261.0,0.063694]
[1646583173209,0.00782775,39269.0,39252.0,0.00365848]
[1646583173403,0.00782775,39269.0,39242.0,0.00365848]
[1646583173604,0.14,39263.0,39245.0,0.01]
[1646583173860,0.00854103,39270.0,39251.0,0.063715]
[1646583174061,0.00854103,39270.0,39253.0,0.005]
[1646583174062,0.18348527,39259.0,39253.0,0.005]
[1646583174264,0.18348527,39259.0,39250.0,0.127416]
[1646583174762,0.18348527,39259.0,39243.0,0.3]
[1646583174763,0.06593331,39258.0,39248.0,0.005]
[1646583174962,0.18348527,39259.0,39248.0,0.005]
[1646583175162,0.20925017,39249.0,39248.0,0.005]
[1646583175361,0.3,39260.0,39248.0,0.005]
[1646583175964,0.3,39260.0,39243.0,0.31003762]
[1646583176362,0.3,39260.0,39248.0,0.063721]
[1646583176562,0.3,39260.0,39248.0,0.07668456]
[1646583176768,0.3,39260.0,39240.0,0.69702478]
[1646583176769,0.3,39259.0,39240.0,0.69702478]
[1646583176964,0.07247113,39258.0,39240.0,0.69702478]
[1646583177166,0.3,39260.0,39240.0,0.69702478]
[1646583177368,0.19395285,39256.0,39241.0,0.21182121]
[1646583177629,0.3,39260.0,39241.0,0.21182121]
[1646583177630,0.3,39260.0,39241.0,0.01385781]
[1646583177829,0.3,39260.0,39243.0,0.06372352]
[1646583178031,0.295,39260.0,39245.0,0.01630915]
[1646583178330,0.295,39260.0,39245.0,0.01171824]
[1646583178531,0.19767686,39254.0,39244.0,0.01077451]
[1646583178729,0.00022707,39253.0,39248.0,0.00025474]
[1646583178932,0.00022707,39253.0,39244.0,0.01077451]
[1646583178933,0.00022707,39253.0,39238.0,0.191143]
[1646583179332,0.00022707,39253.0,39240.0,0.67702478]
[1646583179530,0.00454558,39259.0,39240.0,0.75333851]
[1646583179531,0.00023191,39259.0,39240.0,0.75333851]
[1646583179730,0.00023191,39259.0,39240.0,1.02329013]
[1646583179731,0.15860231,39254.0,39240.0,1.02329013]
[1646583179930,0.00022708,39248.0,39240.0,0.67663526]
[1646583180731,0.21631538,39256.0,39240.0,0.67663526]
[1646583180932,0.00022709,39246.0,39240.0,0.67663526]
[1646583181578,0.21730794,39244.0,39240.0,0.67663526]
[1646583181774,0.21730794,39244.0,39243.0,0.00025484]
[1646583181976,0.50678595,39257.0,39243.0,0.00025484]
[1646583182176,0.50678595,39257.0,39240.0,0.67663526]
[1646583182177,0.00022709,39245.0,39240.0,0.67663526]
[1646583182975,0.15,39250.0,39240.0,0.67663526]
[1646583183178,1.0878,39249.0,39240.0,0.67663526]
[1646583183378,0.00022692,39244.0,39240.0,0.67663526]
[1646583183780,0.16353848,39243.0,39240.0,0.67663526]
[1646583183978,0.16353848,39243.0,39219.0,0.12751]
[1646583183979,1.1,39241.0,39219.0,0.12751]
[1646583184284,1.1,39241.0,39216.0,0.2486584]
[1646583184285,0.15,39237.0,39216.0,0.2486584]
[1646583184485,0.15,39227.0,39216.0,0.2486584]
[1646583184883,0.15120977,39222.0,39216.0,0.2486584]
[1646583185313,0.15120977,39222.0,39207.0,0.3]
[1646583185718,0.14620977,39222.0,39207.0,0.3]
[1646583186014,0.21170946,39224.0,39200.0,0.3]
[1646583186015,0.0429,39221.0,39200.0,0.3]
[1646583186317,0.0429,39220.0,39206.0,0.15]
[1646583186518,0.4781,39240.0,39211.0,0.01230962]
[1646583186714,0.4746,39248.0,39217.0,0.01475062]
[1646583186915,0.18494903,39237.0,39218.0,0.7878]
[1646583187117,0.00431206,39221.0,39220.0,0.07385461]
[1646583187316,0.3125622,39247.0,39222.0,0.00862412]
[1646583187515,0.3,39246.0,39222.0,0.00362412]
[1646583187719,0.7146,39248.0,39226.0,0.15]
[1646583187922,0.24,39248.0,39229.0,0.01369828]
[1646583188116,0.24,39248.0,39229.0,0.3]
[1646583188117,0.18729276,39246.0,39229.0,0.3]
[1646583188315,0.42922556,39248.0,39229.0,0.1]
[1646583188514,0.42922556,39248.0,39230.0,0.3]
[1646583188715,0.42922556,39248.0,39230.0,0.4]
[1646583188971,0.42422556,39248.0,39230.0,0.4]
[1646583189173,0.42422556,39248.0,39233.0,0.063736]
[1646583189373,0.235,39248.0,39234.0,0.3]
[1646583189573,0.235,39248.0,39237.0,0.15]
[1646583189779,0.179024,39258.0,39234.0,0.31360748]
[1646583189780,0.179024,39258.0,39250.0,0.32262393]
[1646583189971,0.179024,39258.0,39251.0,0.3]
[1646583190171,0.179024,39258.0,39250.0,0.32262393]
[1646583190377,0.21231652,39251.0,39250.0,0.32262393]
[1646583190772,0.179024,39258.0,39250.0,0.32287874]
[1646583190974,0.179024,39258.0,39250.0,0.32262393]
[1646583191578,0.17210545,39257.0,39250.0,0.32262393]
[1646583191773,0.174024,39258.0,39250.0,0.32262393]
[1646583191774,0.16668023,39251.0,39250.0,0.32262393]
[1646583192377,0.00011425,39256.0,39250.0,0.32262393]
[1646583192610,0.18220935,39252.0,39250.0,0.32262393]
[1646583193009,0.18220935,39252.0,39223.0,0.380376]
[1646583193010,1.12262,39250.0,39223.0,0.380376]
[1646583193209,1.12262,39250.0,39222.0,0.01615038]
[1646583193210,1.03644215,39249.0,39222.0,0.01615038]
[1646583193410,0.4429,39249.0,39230.0,9.0]
[1646583193611,0.063761,39248.0,39230.0,9.0]
[1646583193811,0.063761,39248.0,39233.0,0.3]
[1646583193812,0.0257,39247.0,39233.0,0.3]
[1646583194010,0.18196581,39240.0,39233.0,0.3]
[1646583194411,0.00022702,39242.0,39230.0,9.0]
[1646583194412,0.00022702,39242.0,39231.0,0.3]
[1646583194611,0.127511,39254.0,39250.0,0.14390333]
[1646583194811,0.127511,39254.0,39230.0,9.0]
[1646583194812,0.15,39251.0,39233.0,0.3]
[1646583195016,0.0257,39242.0,39230.0,9.0]
[1646583195317,0.15089224,39233.0,39230.0,9.0]
[1646583195514,0.15089224,39233.0,39230.0,8.04071]
[1646583195712,0.15089224,39233.0,39230.0,8.01561]
[1646583195713,0.42781,39232.0,39230.0,8.01561]
[1646583195912,1.47271,39231.0,39230.0,7.19901]
[1646583196113,1.51561,39231.0,39230.0,6.97611]
[1646583196359,0.87781,39231.0,39230.0,3.20931817]
[1646583196564,1.51561,39231.0,39230.0,2.17471817]
[1646583196765,0.0429,39231.0,39230.0,0.17811817]
[1646583196962,0.0429,39231.0,39230.0,0.17800923]
[1646583198863,0.2829,39231.0,39230.0,0.17800923]
[1646583199464,0.5329,39231.0,39230.0,0.17800923]
[1646583199668,0.44920553,39230.0,39229.0,1.42e-05]
[1646583199867,0.44920553,39230.0,39202.0,0.4476]
[1646583199868,1.48491,39229.0,39202.0,0.4476]
[1646583200122,1.48491,39229.0,39203.0,0.2486584]
[1646583200123,0.0257,39219.0,39203.0,0.2486584]
[1646583200315,0.0257,39219.0,39202.0,0.2486584]
[1646583200316,0.0257,39217.0,39202.0,0.2486584]
[1646583200511,0.19705421,39213.0,39202.0,0.2486584]
[1646583200714,0.23995421,39213.0,39202.0,0.2486584]
[1646583200912,0.15232296,39208.0,39202.0,0.2486584]
[1646583201113,0.23995421,39213.0,39208.0,0.30464592]
[1646583201314,0.0257,39212.0,39202.0,0.2486584]
[1646583201511,0.0686,39212.0,39202.0,0.2486584]
[1646583201715,0.0686,39212.0,39193.0,0.4616]
[1646583201911,0.19493959,39203.0,39194.0,0.3]
[1646583202511,0.19493959,39203.0,39197.0,0.00022698]
[1646583203513,0.0429,39212.0,39188.0,0.12762567]
[1646583203870,0.04249,39212.0,39198.0,0.00022697]
[1646583204068,0.3257,39211.0,39198.0,0.00022697]
[1646583204269,0.16255804,39207.0,39186.0,0.24022697]
[1646583204569,0.0429,39210.0,39188.0,0.06381206]
[1646583204769,0.0429,39210.0,39187.0,0.0257]
[1646583204969,0.0686,39210.0,39186.0,0.24022697]
[1646583205167,0.0686,39210.0,39186.0,0.39022697]
[1646583205372,0.0429,39210.0,39198.0,0.18138445]
[1646583205578,0.3190458,39229.0,39198.0,0.18138445]
[1646583205579,0.25,39231.0,39202.0,0.1926597]
[1646583205772,0.25,39231.0,39204.0,0.0257]
[1646583205970,0.0257,39230.0,39204.0,0.0257]
[1646583206169,0.0257,39230.0,39204.0,0.1]
[1646583206369,0.0257,39230.0,39205.0,0.3]
[1646583206569,0.19211293,39226.0,39205.0,0.3]
[1646583206771,0.17781293,39226.0,39205.0,0.4257]
[1646583206972,0.313785,39231.0,39212.0,0.01257887]
[1646583206973,0.25,39231.0,39212.0,0.01257887]
[1646583207173,0.25,39231.0,39213.0,0.01601201]
[1646583207370,0.25,39231.0,39215.0,0.91970869]
[1646583207614,0.25,39231.0,39223.0,0.063745]
[1646583207615,0.25090731,39231.0,39223.0,0.063745]
[1646583207815,0.25090731,39231.0,39225.0,0.0257]
[1646583208314,0.25,39231.0,39229.0,0.00025497]
[1646583208514,0.25,39231.0,39230.0,0.00025497]
[1646583209122,0.00044499,39236.0,39231.0,0.9257]
[1646583209315,0.00044499,39236.0,39235.0,0.00025493]
[1646583209513,0.00376802,39252.0,39235.0,0.00025493]
[1646583209514,0.0021,39252.0,39235.0,0.00025493]
[1646583209714,0.0021,39252.0,39232.0,0.0257]
[1646583209715,0.16198861,39246.0,39232.0,0.0257]
[1646583209914,0.16198861,39246.0,39233.0,0.127469]
[1646583209915,0.00011126,39238.0,39233.0,0.127469]
[1646583210113,0.00011126,39238.0,39234.0,0.3]
[1646583210313,0.00011126,39238.0,39235.0,0.089432]
[1646583210514,0.00011126,39238.0,39236.0,0.3]
[1646583210717,0.00376826,39252.0,39236.0,0.3]
[1646583210718,0.0021,39252.0,39236.0,0.3]
[1646583210920,0.0021,39252.0,39238.0,0.127445]
[1646583211120,0.00154499,39244.0,39239.0,1.009668]
[1646583211374,0.00154499,39244.0,39239.0,0.31010791]
[1646583211574,0.00154499,39244.0,39239.0,1.12360791]
[1646583211976,0.00154499,39244.0,39237.0,0.1]
[1646583211977,0.18340359,39244.0,39237.0,0.1]
[1646583212172,0.18340359,39244.0,39235.0,0.3]
[1646583212173,0.00022669,39243.0,39235.0,0.3]
[1646583212373,0.00022669,39243.0,39231.0,0.427479]
[1646583212576,0.00022669,39243.0,39232.0,0.0257]
[1646583212775,0.00022669,39243.0,39231.0,0.427479]
[1646583213278,0.0011,39244.0,39235.0,0.12747838]
[1646583213476,0.0002267,39239.0,39231.0,0.427479]
[1646583213876,0.0002267,39239.0,39231.0,0.127479]
[1646583214276,0.0002267,39239.0,39232.0,0.3]
[1646583214475,0.21207721,39240.0,39232.0,0.3]
[1646583214678,0.0002267,39238.0,39232.0,0.3]
[1646583214878,0.18757105,39234.0,39232.0,0.3]
[1646583215109,0.0002267,39238.0,39233.0,0.02294806]
[1646583215313,0.0002267,39238.0,39227.0,0.3]
[1646583215711,0.0021,39252.0,39250.0,0.22648665]
[1646583215912,0.00550421,39252.0,39250.0,0.22648665]
[1646583216109,0.2029296,39251.0,39250.0,0.22648665]
[1646583216510,0.9672496,39251.0,39250.0,0.22648665]
[1646583216711,1.13532037,39251.0,39250.0,0.22648665]
[1646583217112,0.0257,39248.0,39230.0,0.3]
[1646583217311,0.0257,39248.0,39229.0,0.06375]
[1646583217511,0.0257,39246.0,39230.0,0.3]
[1646583217713,0.15243122,39233.0,39222.0,0.2486584]
[1646583217915,0.0257,39233.0,39220.0,0.7474584]
[1646583218114,0.0257,39233.0,39221.0,0.3]
[1646583218115,0.21934193,39229.0,39221.0,0.3]
[1646583218413,0.21934193,39229.0,39220.0,0.2486584]
[1646583218721,0.0257,39228.0,39220.0,0.2486584]
[1646583219365,0.24504193,39229.0,39220.0,0.2486584]
[1646583219567,0.24504193,39229.0,39214.0,0.3]
[1646583219766,0.24504193,39229.0,39212.0,0.127543]
[1646583219966,0.21934193,39229.0,39213.0,0.3]
[1646583220170,0.21934193,39229.0,39215.0,0.063773]
[1646583220471,0.20934193,39229.0,39216.0,0.3]
[1646583220674,0.18909905,39227.0,39216.0,0.3]
[1646583221170,0.20934193,39229.0,39216.0,0.3]
[1646583221773,0.20934193,39229.0,39214.0,0.0257]
[1646583221970,0.20934193,39229.0,39213.0,0.3]
[1646583222373,0.0429,39238.0,39214.0,0.063766]
[1646583222635,0.76542,39251.0,39217.0,0.01541006]
[1646583222636,0.0257,39244.0,39217.0,0.01541006]
[1646583222827,0.0257,39244.0,39226.0,0.06375345]
[1646583223028,0.0257,39244.0,39227.0,0.3]
[1646583223225,0.0257,39244.0,39227.0,2.9602629]
[1646583223426,0.21703645,39239.0,39227.0,2.9602629]
[1646583224026,0.21703645,39239.0,39227.0,0.363755]
[1646583224430,0.00022676,39238.0,39227.0,0.363755]
[1646583224828,0.00022676,39238.0,39227.0,0.376755]
[1646583225226,0.21703645,39239.0,39227.0,0.376755]
[1646583225426,0.00022293,39238.0,39227.0,0.376755]
[1646583225826,0.06725938,39239.0,39227.0,0.376755]
[1646583226230,0.06725938,39239.0,39227.0,0.313]
[1646583226455,0.06725938,39239.0,39227.0,0.076756]
[1646583226660,0.06725938,39239.0,39228.0,0.3]
[1646583226856,0.06725938,39239.0,39228.0,0.36375208]
[1646583227056,0.06725938,39239.0,39228.0,0.3]
[1646583227861,0.06725938,39239.0,39227.0,0.013]
[1646583227862,0.09295938,39239.0,39227.0,0.013]
[1646583228060,0.3257,39238.0,39227.0,0.013]
[1646583228258,0.18955884,39232.0,39227.0,0.013]
[1646583228861,0.0257,39239.0,39228.0,0.063764]
[1646583229059,0.15,39249.0,39228.0,0.063764]
[1646583229060,0.00090701,39237.0,39229.0,0.3]
[1646583229458,0.00090701,39237.0,39233.0,0.00025491]
[1646583229659,0.00022674,39240.0,39238.0,0.00181402]
[1646583229863,0.00022674,39240.0,39239.0,0.063731]
[1646583230108,0.00450013,39251.0,39240.0,0.127451]
[1646583230314,0.0011,39251.0,39242.0,0.24990531]
[1646583230510,0.0021,39252.0,39244.0,0.0257]
[1646583230908,0.0021,39252.0,39248.0,0.00025483]
[1646583231108,0.0021,39252.0,39251.0,0.00025483]
[1646583231312,0.001,39261.0,39251.0,0.00025483]
[1646583231513,0.001,39261.0,39250.0,0.51683614]
[1646583231712,0.001,39261.0,39252.0,0.0257]
[1646583231914,0.001,39261.0,39252.0,1.1135]
[1646583232110,0.001,39261.0,39252.0,1.177205]
[1646583232311,0.001,39261.0,39255.0,0.127411]
[1646583232512,0.001,39261.0,39256.0,0.3]
[1646583232713,0.001,39268.0,39257.0,0.0257]
[1646583232914,0.001,39268.0,39261.0,0.0257]
[1646583233112,0.001,39268.0,39261.0,0.04704189]
[1646583233327,0.001,39279.0,39264.0,0.01276043]
[1646583233328,0.0031,39274.0,39264.0,0.01276043]
[1646583233514,0.001,39279.0,39274.0,0.9]
[1646583233881,4.2371301,39281.0,39279.0,0.01218084]
[1646583234078,1.0,39289.0,39281.0,2.2]
[1646583234272,0.0011,39304.0,39288.0,0.15]
[1646583234470,0.0011,39302.0,39292.0,0.0257]
[1646583234669,0.0011,39302.0,39292.0,0.05904949]
[1646583234670,4.15e-05,39293.0,39292.0,0.05904949]
[1646583234867,4.15e-05,39293.0,39289.0,0.1589812]
[1646583235068,4.15e-05,39293.0,39288.0,0.127272]
[1646583235270,0.03707734,39297.0,39277.0,0.59344263]
[1646583235473,0.01130747,39300.0,39290.0,1.1]
[1646583235668,0.0011,39302.0,39292.0,0.7]
[1646583235868,0.0011,39302.0,39294.0,0.06363472]
[1646583236074,0.0011,39302.0,39295.0,0.01170022]
[1646583236272,0.0222,39305.0,39293.0,0.09358456]
[1646583236467,0.0222,39305.0,39293.0,0.00974945]
[1646583236675,0.3222,39305.0,39283.0,0.18575114]
[1646583236874,0.3222,39305.0,39283.0,0.127307]
[1646583237070,0.17636742,39295.0,39284.0,0.3]
[1646583237271,0.17636742,39295.0,39283.0,0.127307]
[1646583237272,0.17636742,39295.0,39288.0,0.09974305]
[1646583237469,0.0734668,39301.0,39292.0,0.09974305]
[1646583237723,0.0734668,39301.0,39293.0,0.3]
[1646583237920,0.19567635,39298.0,39279.0,0.07424919]
[1646583238121,0.19567635,39298.0,39280.0,0.3]
[1646583238321,0.19567635,39298.0,39282.0,0.127309]
[1646583238520,0.0734668,39301.0,39283.0,0.3]
[1646583238723,0.0002263,39291.0,39284.0,0.063657]
[1646583238919,0.0002263,39291.0,39284.0,0.07556225]
[1646583239122,0.20869114,39297.0,39291.0,0.00045259]
[1646583239322,0.20869114,39297.0,39291.0,0.12772459]
[1646583239520,0.25,39295.0,39291.0,0.12772459]
[1646583239724,0.25,39295.0,39291.0,0.00045259]
[1646583241221,0.25,39295.0,39291.0,0.12773952]
[1646583241482,0.0222,39305.0,39292.0,0.36363]
[1646583241673,0.0222,39305.0,39294.0,0.00966381]
[1646583241876,0.0222,39305.0,39292.0,0.3]
[1646583242079,0.0222,39305.0,39291.0,0.00045259]
[1646583242080,0.3222,39305.0,39291.0,0.00045259]
[1646583242274,0.07386747,39299.0,39291.0,0.00045259]
[1646583242476,0.3222,39305.0,39291.0,0.00045259]
[1646583242477,0.15,39303.0,39291.0,0.00045259]
[1646583242674,0.15,39304.0,39291.0,0.00045259]
[1646583242876,0.15,39304.0,39283.0,0.06366]
[1646583242877,0.20634943,39294.0,39283.0,0.03911259]
[1646583243075,0.20634943,39294.0,39287.0,0.00254595]
[1646583243276,0.20634943,39294.0,39291.0,0.00254595]
[1646583243474,0.20634943,39294.0,39293.0,0.00254595]
[1646583243875,0.20634943,39294.0,39287.0,0.00022644]
[1646583244079,0.50634943,39294.0,39287.0,0.00022644]
[1646583244276,0.50634943,39294.0,39287.0,6.44e-06]
[1646583244484,0.50634943,39294.0,39262.0,0.40307225]
[1646583244485,0.19110979,39279.0,39262.0,0.40307225]
[1646583244677,0.19110979,39279.0,39266.0,0.2499999]
[1646583244878,0.0469,39278.0,39266.0,0.2499999]
[1646583245134,0.3469,39278.0,39266.0,0.2499999]
[1646583245329,0.3469,39278.0,39251.0,0.5047189]
[1646583245526,0.0257,39271.0,39251.0,1.0047189]
[1646583245727,0.0257,39257.0,39251.0,0.2499999]
[1646583245928,0.16561652,39253.0,39252.0,0.5]
[1646583246124,0.15,39262.0,39254.0,0.49684955]
[1646583246125,0.3,39261.0,39254.0,0.49684955]
[1646583246325,0.7878,39261.0,39254.0,0.49684955]
[1646583246529,0.15,39261.0,39254.0,0.49684955]
[1646583246727,0.0257,39258.0,39254.0,4.955e-05]
[1646583246927,0.0257,39254.0,39241.0,0.09831]
[1646583247136,0.0257,39248.0,39241.0,0.09831]
[1646583247329,0.19638498,39249.0,39241.0,0.09831]
[1646583247330,0.0257,39246.0,39241.0,0.09831]
[1646583247526,0.19638498,39249.0,39241.0,0.09831]
[1646583247527,0.0726,39245.0,39241.0,0.09831]
[1646583247730,0.24739761,39244.0,39241.0,0.09831]
[1646583247927,0.0469,39243.0,39241.0,0.09831]
[1646583248325,0.0469,39243.0,39241.0,0.09853658]
[1646583248527,0.0469,39243.0,39242.0,0.3]
[1646583248726,0.0469,39243.0,39242.0,0.31298493]
[1646583248964,0.15,39271.0,39242.0,1.20078493]
[1646583249164,2.05851066,39276.0,39243.0,0.01286006]
[1646583249165,0.15,39275.0,39243.0,0.01286006]
[1646583249364,0.15,39275.0,39244.0,0.7878]
[1646583249365,0.0257,39268.0,39244.0,0.7878]
[1646583249564,0.4564,39280.0,39255.0,0.00022653]
[1646583249766,0.16,39281.0,39255.0,0.00022653]
[1646583249767,0.05355537,39281.0,39257.0,0.01697832]
[1646583249962,0.15,39285.0,39258.0,0.01273]
[1646583250163,0.1928,39285.0,39258.0,0.01273]
[1646583250363,0.17741356,39262.0,39258.0,0.01273]
[1646583250569,0.17741356,39262.0,39251.0,0.3]
[1646583250764,0.17741356,39262.0,39251.0,0.46370167]
[1646583250968,0.10244071,39273.0,39251.0,0.46370167]
[1646583251162,0.10244071,39273.0,39251.0,0.4]
[1646583251363,0.10244071,39273.0,39252.0,0.01273]
[1646583251663,0.0428,39273.0,39252.0,0.01273]
[1646583251870,0.1858977,39269.0,39254.0,0.063705]
[1646583252267,0.1858977,39269.0,39252.0,0.11273]
[1646583252268,0.1858977,39269.0,39252.0,0.01273]
[1646583252466,0.21242822,39258.0,39252.0,0.01273]
[1646583252716,0.21242822,39258.0,39249.0,0.01273]
[1646583252916,0.21739671,39252.0,39245.0,0.2499999]
[1646583253513,0.20999784,39248.0,39245.0,0.2499999]
[1646583253716,0.20999784,39248.0,39242.0,0.01273]
[1646583254218,0.19264036,39246.0,39243.0,0.00023027]
[1646583254416,0.21834036,39246.0,39243.0,0.00023027]
[1646583254614,0.19264036,39246.0,39243.0,0.00023027]
[1646583255215,0.19264036,39246.0,39241.0,0.013]
[1646583255515,0.19264036,39246.0,39243.0,0.00023027]
[1646583255918,1.004045,39264.0,39243.0,0.00023027]
[1646583255919,0.15,39261.0,39243.0,0.00023027]
[1646583256121,0.191245,39264.0,39243.0,0.00023027]
[1646583256122,0.15,39254.0,39243.0,0.00023027]
[1646583256378,0.15,39260.0,39243.0,0.00023027]
[1646583256572,0.1,39263.0,39241.0,0.013]
[1646583256573,0.09941496,39257.0,39241.0,0.013]
[1646583256778,0.0257,39253.0,39247.0,0.00022234]
[1646583256971,0.16220809,39248.0,39247.0,0.00022234]
[1646583257171,0.16220809,39248.0,39238.0,0.30181402]
[1646583257172,0.18677766,39240.0,39238.0,0.00181402]
[1646583258175,0.0428,39239.0,39238.0,0.00181402]
[1646583259173,0.39753206,39240.0,39239.0,0.08559999]
[1646583259174,0.62183206,39240.0,39239.0,0.08559999]
[1646583259374,0.66463206,39240.0,39239.0,0.08559999]
[1646583259777,0.10698772,39240.0,39239.0,0.08559999]
[1646583262729,0.31286933,39240.0,39239.0,0.08559999]
[1646583262929,0.49991413,39240.0,39239.0,0.08559999]
[1646583264564,0.10698772,39240.0,39239.0,0.08559999]
[1646583268035,0.10698772,39240.0,39239.0,0.38559999]
[1646583268231,0.10698772,39240.0,39239.0,0.08559999]
[1646583268829,0.06418772,39240.0,39239.0,0.08559999]
[1646583269730,0.06418772,39240.0,39239.0,0.38559999]
[1646583269932,0.06418772,39240.0,39239.0,0.63559999]
[1646583269933,0.05806059,39240.0,39239.0,0.63559999]
[1646583270130,0.0428,39270.0,39240.0,0.96198177]
[1646583270335,1.94551534,39268.0,39245.0,0.01446985]
[1646583270529,1.94551534,39268.0,39248.0,0.063708]
[1646583270731,0.16538088,39258.0,39249.0,0.31273]
[1646583270931,0.16538088,39258.0,39249.0,0.01273]
[1646583271129,0.16538088,39258.0,39249.0,0.31273]
[1646583271364,0.16538088,39258.0,39250.0,2.41104761]
[1646583271570,0.16538088,39258.0,39247.0,0.127416]
[1646583271768,0.19947144,39249.0,39244.0,0.01273]
[1646583271965,1.87520973,39268.0,39241.0,0.41273]
[1646583271966,0.047816,39266.0,39241.0,0.41273]
[1646583272167,0.047816,39266.0,39241.0,0.31273]
[1646583272365,0.111534,39266.0,39243.0,0.1911508]
[1646583272667,0.0257,39265.0,39244.0,0.3]
[1646583272867,0.0257,39263.0,39244.0,0.3]
[1646583273065,0.20192141,39255.0,39244.0,0.3]
[1646583273269,0.20192141,39255.0,39245.0,0.063724]
[1646583273465,0.20192141,39255.0,39246.0,0.3]
[1646583273668,0.0257,39263.0,39245.0,0.0002344]
[1646583273669,0.18463839,39249.0,39245.0,0.0002344]
[1646583273869,0.10652528,39264.0,39245.0,0.0002344]
[1646583274166,0.10652528,39264.0,39245.0,0.06395286]
[1646583274167,0.18189466,39256.0,39245.0,0.06395286]
[1646583274366,0.004991,39263.0,39248.0,0.063712]
[1646583274567,0.004991,39263.0,39249.0,0.3]
[1646583274767,0.06052228,39265.0,39249.0,0.3]
[1646583274970,1.87520973,39268.0,39247.0,0.25484367]
[1646583274971,0.07230067,39253.0,39247.0,0.127424]
[1646583275221,0.0428,39252.0,39245.0,0.0002344]
[1646583275422,0.16049548,39255.0,39245.0,0.0002344]
[1646583275423,0.16543027,39247.0,39245.0,0.0002344]
[1646583275915,0.16543027,39247.0,39240.0,0.17418177]
[1646583276116,0.18862428,39243.0,39240.0,0.17418177]
[1646583276320,0.1879974,39241.0,39240.0,0.17418177]
[1646583276517,0.18862428,39243.0,39240.0,0.17418177]
[1646583276518,0.0428,39242.0,39240.0,0.17418177]
[1646583277316,0.0128,39242.0,39240.0,0.17418177]
[1646583277517,0.22003216,39242.0,39240.0,0.17418177]
[1646583277918,0.41233661,39242.0,39240.0,0.17418177]
[1646583278515,0.0128,39242.0,39240.0,0.17418177]
[1646583280068,0.0128,39242.0,39240.0,0.47418177]
[1646583280271,0.191232,39262.0,39240.0,0.47418177]
[1646583280272,0.004913,39261.0,39244.0,0.0384]
[1646583280471,0.0428,39264.0,39245.0,0.3]
[1646583280669,0.09593216,39259.0,39245.0,0.3]
[1646583280869,0.09593216,39259.0,39245.0,0.30023441]
[1646583281169,0.0257,39257.0,39245.0,0.00023441]
[1646583281470,0.0257,39255.0,39245.0,0.00023441]
[1646583281668,0.18485162,39250.0,39244.0,0.0384]
[1646583281867,0.0685,39255.0,39245.0,0.0002344]
[1646583282716,0.3,39254.0,39245.0,0.0002344]
[1646583282918,0.23694413,39248.0,39244.0,0.0336344]
[1646583283223,0.23694413,39248.0,39245.0,0.0002344]
[1646583283816,0.0428,39255.0,39245.0,0.0002344]
[1646583284017,0.10653883,39255.0,39245.0,0.0002344]
[1646583284219,0.10653883,39255.0,39244.0,0.0336344]
[1646583284419,0.0428,39255.0,39244.0,0.0336344]
[1646583284616,0.07187164,39253.0,39244.0,0.0336344]
[1646583284821,0.21542404,39247.0,39244.0,0.0336344]
[1646583285020,0.21542404,39247.0,39243.0,9.63e-06]
[1646583285226,0.65164565,39246.0,39243.0,9.63e-06]
[1646583285425,0.65164565,39246.0,39240.0,0.17418177]
[1646583285426,0.0257,39244.0,39240.0,0.17418177]
[1646583285621,0.0257,39242.0,39225.0,0.3]
[1646583285826,0.0257,39234.0,39220.0,0.3]
[1646583286022,0.0257,39232.0,39224.0,0.02040166]
[1646583286377,0.0428,39232.0,39228.0,0.02040166]
[1646583286582,0.0428,39232.0,39231.0,0.02039828]
[1646583287979,0.76449,39243.0,39231.0,0.0203949]
[1646583288179,0.76449,39243.0,39230.0,0.00012722]
[1646583288180,0.7640495,39243.0,39230.0,0.00012722]
[1646583288781,0.7640495,39243.0,39233.0,0.01492288]
[1646583288980,0.7640495,39243.0,39233.0,0.31492288]
[1646583289182,0.7640495,39243.0,39235.0,0.06397043]
[1646583289379,0.7640495,39243.0,39236.0,0.3]
[1646583289779,0.20651668,39243.0,39235.0,0.00023443]
[1646583289978,0.20618415,39243.0,39235.0,0.00023443]
[1646583290243,0.20618415,39243.0,39234.0,0.127471]
[1646583290444,0.20618415,39243.0,39237.0,0.00023442]
[1646583291445,0.20618415,39243.0,39231.0,0.127485]
[1646583291645,0.20618415,39243.0,39238.0,0.00023442]
[1646583292351,0.20618415,39243.0,39238.0,4.42e-06]
[1646583292352,0.0685,39242.0,39238.0,4.42e-06]
[1646583292547,0.22391853,39242.0,39223.0,0.3]
[1646583292748,0.0257,39240.0,39223.0,0.3]